bitfinex-derivatives/quotes_BNBF0:USTF0_20250115
["timestamp","ask_amount","ask_price","bid_price","bid_amount"]
[1736972221992,0.28123461,711.15,709.66,1.0414083]
[1736972222184,0.28123461,711.15,709.68,0.28181715]
[1736972226994,0.28123461,711.15,709.8,1.0414083]
[1736972228093,0.28123461,711.15,709.89,1.0414083]
[1736972229095,0.28123461,711.15,709.68,0.28181715]
[1736972229096,0.28123461,711.15,709.92,1.0414083]
[1736972229596,0.28123461,711.15,709.92,1.2664083]
[1736972229897,0.28123461,711.15,709.94,1.0414083]
[1736972230898,0.28123461,711.15,709.92,0.225]
[1736972235899,0.28123461,711.15,709.92,1.376]
[1736972241706,0.28123461,711.15,709.92,2.218]
[1736972261716,0.28123461,711.15,709.93,0.28171791]
[1736972264222,0.28123461,711.15,709.93,1.54771791]
[1736972266621,0.28123461,711.15,709.93,1.77071791]
[1736972268625,0.28123461,711.15,709.94,1.60226498]
[1736972269026,0.28123461,711.15,709.95,2.70350411]
[1736972269226,0.28123461,711.15,709.96,1.60226498]
[1736972269425,0.28123461,711.15,709.97,0.28170204]
[1736972274733,0.27639801,711.15,709.97,0.28170204]
[1736972277034,0.27639801,711.15,709.97,1.53770204]
[1736972278330,0.27639801,711.15,709.97,2.63570204]
[1736972302346,1.04962037,711.82,709.97,2.63570204]
[1736972302947,0.28097385,711.81,709.97,2.85670204]
[1736972306147,0.28097385,711.81,710.02,1.03480416]
[1736972306548,0.28097385,711.81,710.04,0.28167427]
[1736972307644,0.28097385,711.81,710.04,1.17067427]
[1736972312854,0.25826975,711.8,710.04,1.17067427]
[1736972313149,0.53926565,711.79,710.04,1.17067427]
[1736972313353,0.28098569,711.78,710.04,1.17067427]
[1736972314556,0.25828357,711.77,710.04,1.17067427]
[1736972314757,0.28099359,711.76,710.04,1.17067427]
[1736972323967,0.28099359,711.76,710.04,2.34667427]
[1736972328871,0.28099359,711.76,710.1,1.03480416]
[1736972329171,0.28099359,711.76,710.12,0.28164253]
[1736972331269,0.28099359,711.76,710.13,1.03480416]
[1736972332071,0.28099359,711.76,710.15,0.28163064]
[1736972332971,0.28099359,711.76,710.15,1.3164348]
[1736972334168,0.28099359,711.76,710.17,1.03480416]
[1736972334373,0.28099359,711.76,710.19,0.28161477]
[1736972336576,0.28099359,711.76,710.2,1.59225835]
[1736972336872,0.28099359,711.76,710.22,0.28160288]
[1736972337076,0.28099359,711.76,710.31,1.03480416]
[1736972338376,0.28099359,711.76,710.28,1.03480416]
[1736972339383,0.28099359,711.76,710.3,0.28157116]
[1736972347373,0.28099359,711.76,710.3,0.50057116]
[1736972349180,0.28099359,711.76,710.3,1.42557116]
[1736972359586,0.28099359,711.76,710.32,1.03480416]
[1736972360686,0.28099359,711.76,710.3,1.20657116]
[1736972361085,0.28099359,711.76,710.32,0.28156323]
[1736972366285,0.28099359,711.76,710.32,1.27856323]
[1736972370187,0.28099359,711.76,710.33,4.29909016]
[1736972370388,0.28099359,711.76,710.35,0.28155134]
[1736972371486,0.28099359,711.76,710.47,1.03480416]
[1736972371888,0.28099359,711.76,710.48,0.28149983]
[1736972372895,0.28099359,711.76,710.48,0.49949983]
[1736972373788,1.04962037,712.18,710.48,0.49949983]
[1736972374395,1.33044825,712.18,710.48,0.49949983]
[1736972374793,0.28082788,712.18,710.48,0.49949983]
[1736972378099,0.25808628,712.17,710.49,2.44228724]
[1736972378398,0.28083576,712.16,710.5,0.2814919]
[1736972378797,0.28083576,712.16,710.56,1.03480416]
[1736972379199,0.28083576,712.16,710.57,0.28146417]
[1736972380100,0.25810142,712.15,710.57,0.28146417]
[1736972380297,0.28084365,712.14,710.57,0.28146417]
[1736972382600,0.25810226,712.13,710.57,0.28146417]
[1736972383000,0.28084365,712.14,710.57,0.28146417]
[1736972383196,0.25810216,712.13,710.57,0.28146417]
[1736972383401,0.28084365,712.14,710.57,0.28146417]
[1736972390109,0.28084365,712.14,710.57,0.49846417]
[1736972398716,0.28084365,712.14,710.57,1.30946417]
[1736972402125,1.33046402,712.14,710.58,1.03480416]
[1736972402826,1.33046402,712.14,710.59,0.28145625]
[1736972403225,1.33046402,712.14,710.6,1.03480416]
[1736972403425,1.33046402,712.14,710.61,0.28144833]
[1736972404325,1.04962037,712.12,710.63,1.03480416]
[1736972404529,0.28085548,712.11,710.64,0.28143645]
[1736972405224,1.04962037,712.07,710.67,1.03480416]
[1736972405730,1.04962037,712.07,710.68,0.28142061]
[1736972406131,1.04962037,712.08,710.72,1.03480416]
[1736972406930,1.04962037,712.08,710.68,0.28142061]
[1736972406931,0.28085548,712.11,710.68,0.28142061]
[1736972412429,0.28085548,712.11,710.68,1.31842061]
[1736972414032,0.28085548,712.11,710.69,1.03480416]
[1736972414728,0.28085548,712.11,710.68,1.31842061]
[1736972414932,0.28085548,712.11,710.69,1.06]
[1736972415933,0.28085548,712.11,710.69,1.276]
[1736972416134,0.28085548,712.11,710.71,0.28140873]
[1736972431044,0.28085548,712.11,710.71,1.31621289]
[1736972432845,0.28085548,712.11,710.71,0.28140873]
[1736972433144,1.59923541,712.95,710.72,2.43365637]
[1736972433346,1.59923541,712.95,710.73,2.43365637]
[1736972433540,1.59923541,712.95,710.74,2.43365637]
[1736972433740,1.59923541,712.95,710.75,5.12144414]
[1736972433945,1.59923541,712.95,710.75,2.68778777]
[1736972434244,3.5467021,716.92,710.75,2.68778777]
[1736972434245,2.14297492,715.43,712.08,1.03480416]
[1736972434445,0.98341255,715.42,712.08,1.03480416]
[1736972434745,0.98341255,715.41,712.08,1.03480416]
[1736972434946,0.98341255,715.4,711.03,1.01970797]
[1736972435145,0.98341255,715.39,711.04,1.58049121]
[1736972435345,0.98341255,715.38,711.05,2.41819957]
[1736972435546,0.98341255,715.37,711.06,2.41819957]
[1736972435746,0.98341255,715.36,711.54,1.01970797]
[1736972435946,0.98341255,715.35,711.54,1.01970797]
[1736972436145,0.98309357,715.34,711.55,1.57647545]
[1736972436346,0.98309357,715.33,711.54,1.01970797]
[1736972436549,2.14297492,715.84,711.53,1.01970797]
[1736972436550,0.98309357,715.32,711.53,1.01970797]
[1736972436743,0.25757605,715.31,711.53,1.01970797]
[1736972437046,0.25757605,715.3,711.53,1.82370797]
[1736972437247,0.25757605,715.29,711.53,1.82370797]
[1736972437547,0.25757605,715.28,711.53,1.82370797]
[1736972437747,0.25757605,715.27,711.53,0.804]
[1736972437941,0.25757605,715.26,711.53,0.804]
[1736972438143,0.25757605,715.25,711.53,0.804]
[1736972438346,0.98311357,715.24,711.53,0.804]
[1736972438647,0.98311357,715.23,711.53,0.804]
[1736972438842,1.24054294,715.22,711.53,0.804]
[1736972439047,0.98300837,715.21,711.53,0.804]
[1736972439348,0.98300837,715.2,711.53,0.804]
[1736972439547,0.98300837,715.19,711.53,0.804]
[1736972439846,0.2575428,715.18,711.53,0.804]
[1736972440145,0.2575428,715.17,711.53,0.804]
[1736972440346,0.98291734,715.16,711.53,0.804]
[1736972440543,0.98291734,715.15,711.53,0.804]
[1736972440748,0.98291734,715.14,711.53,0.804]
[1736972440941,0.25751319,715.13,711.53,0.804]
[1736972441146,0.25751319,715.12,711.53,0.804]
[1736972441348,0.98291734,715.11,711.53,0.804]
[1736972441643,0.27974375,714.94,711.53,0.804]
[1736972441843,0.25751319,714.93,711.53,1.979]
[1736972442042,0.25751319,714.92,711.7,0.28101728]
[1736972442248,0.25751319,714.91,711.7,0.28101728]
[1736972442450,0.25751319,714.9,711.7,0.28101728]
[1736972442648,0.25751319,714.89,711.7,0.28101728]
[1736972442848,0.25751319,714.88,711.7,0.28101728]
[1736972443044,0.27982203,714.74,711.71,2.39394852]
[1736972443349,0.98291734,714.73,711.86,0.28095412]
[1736972443644,0.27986902,714.62,711.86,0.28095412]
[1736972443844,0.25751319,714.61,711.86,0.28095412]
[1736972444047,0.27988077,714.59,711.86,0.28095412]
[1736972444247,0.25751319,714.58,711.86,0.28095412]
[1736972444448,0.25751319,714.57,711.86,0.28095412]
[1736972444648,0.27989643,714.55,711.86,0.28095412]
[1736972444851,0.25730251,714.54,711.86,0.28095412]
[1736972445048,0.27990819,714.52,711.86,0.28095412]
[1736972445248,0.25730251,714.51,711.86,0.28095412]
[1736972445547,0.25730251,714.5,711.86,0.28095412]
[1736972445749,0.25730251,714.49,711.86,0.28095412]
[1736972446043,0.27992777,714.47,711.86,0.28095412]
[1736972446249,0.25730251,714.46,711.86,0.28095412]
[1736972446549,0.27993953,714.44,711.86,0.28095412]
[1736972446749,0.25730251,714.43,711.86,0.28095412]
[1736972446942,0.27995128,714.41,711.86,0.28095412]
[1736972447144,0.25734646,714.4,711.86,0.28095412]
[1736972447348,1.46363005,714.87,711.86,0.28095412]
[1736972447349,0.27996304,714.38,711.86,0.28095412]
[1736972447548,0.25734646,714.37,711.86,0.28095412]
[1736972447849,1.46363005,714.87,711.86,0.28095412]
[1736972447850,0.2799748,714.35,711.86,0.28095412]
[1736972448044,0.25734646,714.34,711.86,0.28095412]
[1736972448247,0.27998656,714.32,711.86,0.28095412]
[1736972448448,0.25734646,714.31,711.86,0.28095412]
[1736972448647,0.27999832,714.29,711.86,0.28095412]
[1736972448847,0.25734646,714.28,711.86,0.28095412]
[1736972449044,0.27999832,714.29,711.86,0.28095412]
[1736972449045,0.53735262,714.27,711.86,0.28095412]
[1736972449348,0.53735654,714.26,711.86,0.28095412]
[1736972449549,0.53736046,714.25,711.86,0.28095412]
[1736972449744,0.53736438,714.24,711.86,0.28095412]
[1736972449952,0.25734646,714.23,711.86,0.28095412]
[1736972450249,1.46363005,714.87,711.86,0.28095412]
[1736972450250,0.53737222,714.22,711.86,0.28095412]
[1736972450449,0.53737614,714.21,711.86,0.28095412]
[1736972450646,0.53738006,714.2,711.86,0.28095412]
[1736972450846,0.53738398,714.19,711.86,0.28095412]
[1736972451044,0.25734646,714.18,711.86,0.28095412]
[1736972451348,0.25734646,714.17,711.86,0.28095412]
[1736972451543,0.25734646,714.16,711.86,0.28095412]
[1736972451849,0.25734646,714.15,711.86,0.28095412]
[1736972452051,0.25734646,714.14,711.86,0.28095412]
[1736972452351,0.25732929,714.13,711.86,0.28095412]
[1736972452551,0.25732929,714.12,711.86,0.28095412]
[1736972452749,0.25732929,714.11,711.86,0.28095412]
[1736972452950,0.25732821,714.1,711.86,0.28095412]
[1736972453152,0.25732821,714.09,711.86,0.28095412]
[1736972453453,0.25732821,714.08,711.86,0.28095412]
[1736972453651,0.25732821,714.07,711.86,0.28095412]
[1736972453851,0.25732821,714.06,711.86,0.28095412]
[1736972454046,0.25732821,714.05,711.86,0.28095412]
[1736972454251,0.25732821,714.04,711.86,0.28095412]
[1736972454446,0.28003752,714.19,711.86,0.28095412]
[1736972454646,0.25734599,714.18,711.86,0.28095412]
[1736972455051,0.25733945,714.17,711.86,0.28095412]
[1736972455250,0.25733945,714.16,711.86,0.28095412]
[1736972455552,0.25733945,714.15,711.86,0.28095412]
[1736972455753,0.25733945,714.14,711.86,0.28095412]
[1736972455953,0.28003752,714.19,711.86,0.28095412]
[1736972456154,0.25733766,714.18,711.86,0.28095412]
[1736972456653,0.25733766,714.17,711.86,0.28095412]
[1736972456853,0.25733766,714.16,711.86,0.28095412]
[1736972457052,0.25733766,714.15,711.86,0.28095412]
[1736972457252,0.25733766,714.14,711.86,0.28095412]
[1736972457552,0.25733766,714.13,711.86,0.28095412]
[1736972457752,0.25733276,714.12,711.86,0.28095412]
[1736972457954,0.25733276,714.11,711.86,0.28095412]
[1736972458249,0.25733276,714.1,711.86,0.28095412]
[1736972458454,0.25733276,714.09,711.86,0.28095412]
[1736972458656,0.25733276,714.08,711.86,0.28095412]
[1736972458855,0.25733276,714.07,711.86,0.28095412]
[1736972459055,0.25733276,714.06,711.86,0.28095412]
[1736972459255,0.28003752,714.19,711.86,1.16495412]
[1736972459256,0.25733276,714.05,711.86,1.16495412]
[1736972459452,0.25733276,714.04,711.86,1.16495412]
[1736972459655,0.25733276,714.03,711.86,1.16495412]
[1736972459854,0.25733276,714.02,711.86,1.16495412]
[1736972460051,0.25733276,714.01,711.86,1.16495412]
[1736972460254,0.25733276,714.0,711.86,1.16495412]
[1736972460458,0.25734845,713.99,711.86,1.16495412]
[1736972460657,0.25734845,713.98,711.86,1.16495412]
[1736972460860,0.28003752,714.19,711.86,1.16495412]
[1736972461058,0.25735922,714.18,711.86,1.16495412]
[1736972462359,0.257358,714.17,711.86,1.37695412]
[1736972462554,0.257358,714.16,711.86,1.37695412]
[1736972462753,0.257358,714.15,711.86,1.37695412]
[1736972463060,0.257358,714.14,711.86,1.37695412]
[1736972463256,0.257358,714.13,711.86,1.37695412]
[1736972463456,0.257358,714.12,711.86,1.37695412]
[1736972463653,0.257358,714.18,711.86,1.37695412]
[1736972463855,0.257358,714.17,711.86,1.37695412]
[1736972464156,0.257358,714.16,711.86,1.37695412]
[1736972464360,0.257358,714.15,711.86,1.37695412]
[1736972464562,0.257358,714.14,711.86,1.37695412]
[1736972464764,0.257358,714.13,711.86,1.37695412]
[1736972465061,0.25734791,714.12,711.86,1.37695412]
[1736972465263,0.25734791,714.11,711.86,1.37695412]
[1736972465560,0.25734791,714.1,711.86,1.37695412]
[1736972465869,0.25734791,714.09,711.86,1.37695412]
[1736972466060,0.25734791,714.08,711.86,1.37695412]
[1736972466261,0.25734791,714.07,711.86,1.37695412]
[1736972466564,0.25734791,714.06,711.86,1.37695412]
[1736972466762,0.28003752,714.19,711.86,1.37695412]
[1736972466763,0.25734791,714.05,711.86,1.37695412]
[1736972466963,0.25734791,714.04,711.86,1.37695412]
[1736972467163,0.25734791,714.03,711.86,1.37695412]
[1736972467463,0.25734791,714.02,711.86,1.37695412]
[1736972467663,0.25734791,714.01,712.09,1.01970797]
[1736972467865,0.25734791,714.0,712.11,0.28085548]
[1736972468063,0.28003752,714.19,712.11,0.28085548]
[1736972469082,0.25733274,714.18,712.11,0.28085548]
[1736972469380,0.28003752,714.19,712.11,0.28085548]
[1736972469381,0.25733274,714.17,712.49,1.01970797]
[1736972469660,0.25733274,714.16,712.51,0.28069781]
[1736972469859,0.53738595,714.15,712.51,0.28069781]
[1736972470064,0.53738987,714.14,712.51,0.28069781]
[1736972470365,0.53739379,714.13,712.51,0.28069781]
[1736972470561,0.25738208,714.12,712.51,0.28069781]
[1736972470766,0.25738208,714.11,712.51,0.28069781]
[1736972470968,0.25738208,714.1,712.51,0.28069781]
[1736972471167,0.25738208,714.09,712.51,0.28069781]
[1736972471366,0.25738208,714.08,712.51,0.28069781]
[1736972471565,0.25738208,714.07,712.51,0.28069781]
[1736972471760,0.28006105,714.13,712.51,0.28069781]
[1736972471761,0.25738208,714.06,712.51,0.28069781]
[1736972471968,0.25738208,714.05,712.51,0.28069781]
[1736972472269,0.25738208,714.04,712.55,1.01970797]
[1736972472473,0.25738208,714.03,712.56,0.28067811]
[1736972472666,0.25738208,714.02,712.56,0.28067811]
[1736972472966,0.25738208,714.01,712.67,1.01970797]
[1736972473164,0.25738364,714.0,712.67,1.01970797]
[1736972473373,0.25738364,713.99,712.67,1.01970797]
[1736972473569,0.25738364,713.98,712.67,1.01970797]
[1736972473766,0.25738364,713.97,712.62,1.01970797]
[1736972473970,0.25738364,713.96,712.62,1.01970797]
[1736972474173,0.28006105,714.13,712.62,1.01970797]
[1736972474374,0.25734127,714.12,712.62,1.01970797]
[1736972474673,0.28006105,714.13,712.72,1.01970797]
[1736972475067,0.28006105,714.13,712.73,0.28061117]
[1736972476174,0.25734087,714.12,712.73,0.28061117]
[1736972476475,0.28006105,714.13,712.73,0.28061117]
[1736972477470,0.28006105,714.13,712.73,1.30031914]
[1736972477871,0.25731902,714.12,712.73,1.30031914]
[1736972478073,0.28006105,714.13,712.73,1.30031914]
[1736972478675,0.28006105,714.13,712.93,1.01970797]
[1736972479076,0.28006105,714.13,712.94,0.28052851]
[1736972479576,0.25727993,714.12,713.09,1.01970797]
[1736972479769,0.28006105,714.13,713.09,1.01970797]
[1736972479972,1.22247526,715.2,713.09,1.01970797]
[1736972480173,0.27968116,715.1,713.09,2.10570797]
[1736972480376,0.25722964,715.09,713.09,2.10570797]
[1736972480572,0.27969289,715.07,713.09,1.086]
[1736972480778,0.25722964,715.06,713.09,1.086]
[1736972481084,0.27970463,715.04,713.09,1.086]
[1736972481269,0.25722769,715.03,713.09,1.086]
[1736972481473,0.27970463,715.04,713.09,1.086]
[1736972481474,0.25722769,715.02,713.09,1.086]
[1736972481673,0.27972027,715.0,713.1,0.28046557]
[1736972481868,0.25722769,714.99,713.1,0.28046557]
[1736972482075,0.27973201,714.97,713.1,0.28046557]
[1736972482275,0.25722769,714.96,713.1,0.28046557]
[1736972482477,0.27974375,714.94,713.1,0.28046557]
[1736972482672,0.25722769,714.93,713.1,0.28046557]
[1736972482878,0.25722769,714.92,713.1,0.28046557]
[1736972483077,0.25722769,714.91,713.1,0.28046557]
[1736972483276,0.25722769,714.9,713.1,0.28046557]
[1736972483475,0.25722769,714.89,713.1,0.28046557]
[1736972483675,0.25722769,714.88,713.1,0.28046557]
[1736972483876,0.27974375,714.94,713.1,0.28046557]
[1736972484176,0.25712129,714.93,713.1,0.28046557]
[1736972484374,0.25712129,714.92,713.1,0.28046557]
[1736972484571,0.27974375,714.94,713.11,1.01970797]
[1736972484777,0.25712446,714.93,713.11,1.01970797]
[1736972485677,0.25712446,714.93,713.1,0.28046557]
[1736972486677,0.27974375,714.94,713.1,0.28046557]
[1736972486678,0.25713647,714.92,713.1,0.28046557]
[1736972486875,0.25713647,714.91,713.1,0.28046557]
[1736972487075,0.25713647,714.9,713.1,0.28046557]
[1736972487379,0.25713647,714.89,713.1,0.28046557]
[1736972487581,0.25713647,714.88,713.1,0.28046557]
[1736972487876,0.25713647,714.87,713.1,0.28046557]
[1736972488179,0.25713647,714.86,713.1,0.28046557]
[1736972488380,0.25713647,714.85,713.1,0.28046557]
[1736972488582,0.25713647,714.84,713.1,0.28046557]
[1736972488777,0.25713647,714.83,713.1,0.28046557]
[1736972488978,0.25713647,714.82,713.1,0.28046557]
[1736972489179,0.25713647,714.81,713.1,0.28046557]
[1736972489376,0.25712004,714.8,713.1,0.28046557]
[1736972489577,1.22247526,716.05,713.1,0.28046557]
[1736972489578,0.53692249,714.79,713.1,0.28046557]
[1736972489878,0.25712004,714.78,713.1,0.48946557]
[1736972490073,0.25712004,714.77,713.1,0.48946557]
[1736972490380,0.27980245,714.79,713.1,0.48946557]
[1736972490381,0.25712004,714.76,713.1,1.46946557]
[1736972490681,0.25712004,714.75,713.1,1.46946557]
[1736972490880,0.25712004,714.74,713.1,1.46946557]
[1736972491179,0.27980245,714.79,713.1,1.46946557]
[1736972491180,0.25712004,714.73,713.1,1.46946557]
[1736972491381,0.25712004,714.78,713.1,1.46946557]
[1736972491580,0.25712004,714.72,713.1,1.46946557]
[1736972491878,0.25712004,714.71,713.1,1.46946557]
[1736972492082,0.25709235,714.7,713.1,1.46946557]
[1736972492280,0.27980245,714.79,713.1,1.46946557]
[1736972493479,0.25709014,714.78,713.1,1.46946557]
[1736972493781,0.27980245,714.79,713.1,1.46946557]
[1736972498788,0.25712133,714.78,713.1,1.46946557]
[1736972499789,0.27980245,714.79,713.1,1.46946557]
[1736972501082,0.25715918,714.78,713.1,1.46946557]
[1736972502887,0.25716597,714.77,713.1,1.46946557]
[1736972503086,0.27980245,714.79,713.1,1.46946557]
[1736972503284,0.25717907,714.78,713.1,1.46946557]
[1736972503489,0.27980245,714.79,713.1,1.46946557]
[1736972503684,0.25718001,714.78,713.1,1.46946557]
[1736972504289,0.53698638,714.78,713.1,1.46946557]
[1736972504488,0.25718001,714.77,713.1,1.46946557]
[1736972505090,0.2798142,714.76,713.1,1.46946557]
[1736972505388,0.25718001,714.75,713.1,1.46946557]
[1736972505591,0.53700147,714.74,713.1,1.46946557]
[1736972505788,0.53700538,714.73,713.1,1.46946557]
[1736972505985,0.25717944,714.72,713.1,1.46946557]
[1736972507592,0.27983377,714.71,713.1,1.46946557]
[1736972507792,0.25717944,714.7,713.1,1.46946557]
[1736972508184,0.25713753,714.69,713.1,1.46946557]
[1736972508388,0.25713753,714.68,713.1,1.46946557]
[1736972508590,0.27983377,714.71,713.1,1.46946557]
[1736972508791,0.25714016,714.7,713.1,1.46946557]
[1736972508991,0.2798416,714.69,713.1,1.46946557]
[1736972509294,0.2798416,714.69,713.12,1.01970797]
[1736972509492,0.2798416,714.69,713.13,0.28045377]
[1736972510187,0.2798416,714.69,713.16,1.01970797]
[1736972510589,0.2798416,714.69,713.18,0.28043411]
[1736972513393,0.2798416,714.69,713.26,1.01970797]
[1736972513894,0.2798416,714.69,713.27,0.28039872]
[1736972514290,0.2798416,714.69,713.27,0.48639872]
[1736972514492,0.2798416,714.69,713.29,1.01970797]
[1736972514693,0.2798416,714.69,713.3,0.28038693]
[1736972515289,0.2798416,714.69,713.3,1.54938693]
[1736972515690,0.2798416,714.69,713.51,1.01970797]
[1736972516695,0.25713788,714.68,713.51,1.01970797]
[1736972517198,0.25714082,714.67,713.51,1.01970797]
[1736972517393,0.25714082,714.66,713.51,1.01970797]
[1736972517594,0.25714082,714.65,713.51,1.01970797]
[1736972517795,0.2798416,714.69,713.55,1.01970797]
[1736972517796,0.25714082,714.64,713.55,1.01970797]
[1736972517996,0.25714082,714.63,713.55,1.01970797]
[1736972518196,0.25714082,714.62,713.55,1.01970797]
[1736972518397,0.25714082,714.68,713.55,1.01970797]
[1736972518595,0.2798416,714.69,713.55,1.01970797]
[1736972518797,0.2798416,714.69,713.46,1.03480416]
[1736972518798,0.2798416,714.69,713.54,1.01970797]
[1736972519702,0.25718853,714.68,713.54,1.01970797]
[1736972520002,0.27984944,714.67,713.3,2.33238693]
[1736972520200,0.25718853,714.66,713.3,2.33238693]
[1736972521201,0.25718807,714.65,713.39,1.01970797]
[1736972521400,0.25718807,714.64,713.39,1.01970797]
[1736972521601,0.25718807,714.63,713.39,1.01970797]
[1736972521799,0.27984944,714.67,713.39,1.01970797]
[1736972521800,0.25718807,714.62,713.39,1.01970797]
[1736972522000,0.27984944,714.67,713.31,1.01970797]
[1736972522898,0.27984944,714.67,713.3,2.33238693]
[1736972525404,0.27984944,714.67,713.49,1.01970797]
[1736972525805,0.27984944,714.67,713.5,0.28030833]
[1736972533205,0.27984944,714.67,713.5,1.28130833]
[1736972537217,0.25723377,714.66,713.5,1.28130833]
[1736972537517,1.71934185,714.66,713.5,1.28130833]
[1736972537711,1.46210808,714.66,713.5,1.28130833]
[1736972537915,0.27985727,714.65,713.5,1.001]
[1736972538119,0.25723793,714.64,713.5,1.001]
[1736972538611,0.2798651,714.63,713.5,1.001]
[1736972538813,0.25723876,714.62,713.5,1.776]
[1736972539116,0.27987293,714.61,713.5,1.776]
[1736972539320,0.25723876,714.6,713.5,1.776]
[1736972539816,0.53711896,714.59,713.5,1.776]
[1736972540017,0.27988468,714.58,713.5,1.776]
[1736972542418,0.25728181,714.57,713.5,1.776]
[1736972542615,0.27989252,714.56,713.5,1.776]
[1736972542815,0.25728181,714.55,713.5,1.776]
[1736972543122,0.27990035,714.54,713.5,1.776]
[1736972543319,0.25728181,714.53,713.5,1.776]
[1736972543520,0.27990819,714.52,713.5,1.776]
[1736972543818,0.25728181,714.51,713.5,1.776]
[1736972545120,0.27990819,714.52,713.5,1.776]
[1736972545316,0.25728692,714.51,713.5,1.776]
[1736972546315,0.27991602,714.5,713.5,1.776]
[1736972546616,0.25728692,714.49,713.5,1.776]
[1736972546923,0.27992386,714.48,713.5,1.776]
[1736972547118,0.25728692,714.47,713.5,1.978]
[1736972547321,0.27993169,714.46,713.5,1.978]
[1736972547620,0.25728692,714.45,713.5,1.978]
[1736972547821,0.25728749,714.44,713.5,1.978]
[1736972548020,0.27993169,714.46,713.5,1.978]
[1736972548218,0.25728749,714.45,713.5,1.978]
[1736972548422,0.27993953,714.44,713.5,1.978]
[1736972549722,0.25728651,714.43,713.5,1.978]
[1736972549925,0.27994736,714.42,713.5,1.978]
[1736972588246,0.25736482,714.41,713.5,1.978]
[1736972588446,0.27995912,714.39,713.5,1.978]
[1736972588647,0.25736482,714.38,713.5,1.978]
[1736972589047,0.27997088,714.36,713.5,1.978]
[1736972589243,0.25736482,714.35,713.5,1.978]
[1736972589445,0.25736482,714.34,713.5,1.978]
[1736972589644,1.04229962,714.44,713.5,1.978]
[1736972589645,0.27998656,714.32,713.5,1.978]
[1736972590042,0.25738197,714.31,713.5,1.978]
[1736972590548,0.27999832,714.29,713.5,1.978]
[1736972590748,0.25738197,714.28,713.5,1.978]
[1736972592550,0.25745207,714.27,713.5,1.978]
[1736972592850,0.25745207,714.26,713.5,1.978]
[1736972593050,0.25745207,714.25,713.5,1.978]
[1736972593350,0.25745207,714.24,713.5,1.978]
[1736972593550,0.27999832,714.29,713.5,0.809]
[1736972593551,0.25745207,714.23,713.5,0.809]
[1736972593851,0.25745207,714.22,713.5,0.809]
[1736972594050,0.25745207,714.22,711.85,2.11272516]
[1736972594051,0.25745207,714.21,712.24,1.01970797]
[1736972594243,0.25745207,714.2,712.25,0.28080028]
[1736972594448,0.25745207,714.19,712.25,0.28080028]
[1736972594649,0.25745207,714.18,712.25,0.28080028]
[1736972594852,0.25745207,714.17,712.25,1.07680028]
[1736972595046,0.27999832,714.29,712.25,1.07680028]
[1736972595252,0.25752729,714.28,712.25,1.07680028]
[1736972596551,0.25752729,714.28,712.25,2.34580028]
[1736972597854,0.27999832,714.29,712.25,2.34580028]
[1736972597855,0.25753417,714.27,712.25,2.34580028]
[1736972598051,0.28004536,714.17,712.25,2.34580028]
[1736972598257,0.25753417,714.16,712.25,2.34580028]
[1736972598455,0.25753417,714.15,712.25,2.34580028]
[1736972598654,0.28006105,714.13,712.25,2.34580028]
[1736972598852,0.25753417,714.12,712.25,2.34580028]
[1736972599051,0.25753417,714.11,712.25,2.34580028]
[1736972599249,0.25753417,714.1,712.25,2.34580028]
[1736972599453,0.25753417,714.09,712.25,2.34580028]
[1736972599655,0.25753417,714.08,712.25,2.34580028]
[1736972599855,0.25753417,714.07,712.25,2.34580028]
[1736972600056,0.25753417,714.06,712.25,2.34580028]
[1736972600252,0.28009635,714.04,712.25,2.34580028]
[1736972600559,0.25753417,714.03,712.25,2.34580028]
[1736972600858,0.25753417,714.02,712.25,2.34580028]
[1736972601058,0.28009635,714.04,712.25,2.34580028]
[1736972601059,0.25753417,714.01,712.25,2.34580028]
[1736972601251,0.25753417,714.0,712.25,2.34580028]
[1736972601450,0.25753417,713.99,712.25,2.34580028]
[1736972601656,0.25753417,713.98,712.25,2.34580028]
[1736972601957,0.25753417,713.97,712.25,2.34580028]
[1736972602159,0.25753417,713.96,712.25,2.34580028]
[1736972602353,0.25753417,713.95,712.25,2.065]
[1736972602551,0.2801395,713.93,712.25,2.065]
[1736972602758,0.25753417,713.92,712.25,2.065]
[1736972602963,0.28015128,713.9,712.25,2.065]
[1736972603162,0.25772851,713.89,712.25,2.065]
[1736972603463,0.28016305,713.87,712.25,2.065]
[1736972603656,0.25772851,713.86,712.25,2.065]
[1736972603858,0.25770118,713.85,712.25,2.065]
[1736972604059,0.25770118,713.84,712.25,2.065]
[1736972604260,0.25770118,713.83,712.25,2.065]
[1736972604459,0.25770118,713.82,712.25,2.065]
[1736972604660,0.53788778,713.81,712.25,2.065]
[1736972604861,0.25770118,713.8,712.25,2.065]
[1736972605062,0.25770118,713.79,712.25,2.065]
[1736972605263,0.25770118,713.78,712.25,2.065]
[1736972605463,0.2801866,713.81,712.25,2.065]